[Event "Titled Tuesday Blitz April 12 Late 2022"]
[White "Janaszak, Dawid"]
[Black "Bryakin, Mikhail"]
[WhiteFideId "1119206"]
[BlackFideId "4165314"]
[WhiteElo "2199"]
[BlackElo "2417"]
[Result "1/2-1/2"]
[Round "05"]
[TimeControl "180+1"]
[Date "2022.04.12"]
[WhiteClock "0:00:20"]
[BlackClock "0:00:16"]

1. e4 {[%clk 0:03:00]}  Nf6 {[%clk 0:02:56]} 2. e5 {[%clk 0:03:00]}  Ng8 {[%clk 0:02:56]} 3. Nf3 {[%clk 0:02:54]}  d6 {[%clk 0:02:55]} 4. Bc4 {[%clk 0:02:51]}  d5 {[%clk 0:02:54]} 5. Bb3 {[%clk 0:02:52]}  c5 {[%clk 0:02:51]} 6. c4 {[%clk 0:02:37]}  d4 {[%clk 0:02:50]} 7. h3 {[%clk 0:02:36]}  Nc6 {[%clk 0:02:43]} 8. O-O {[%clk 0:02:36]}  h6 {[%clk 0:02:42]} 9. d3 {[%clk 0:02:35]}  Bf5 {[%clk 0:02:42]} 10. Bf4 {[%clk 0:02:22]}  e6 {[%clk 0:02:42]} 11. Qe2 {[%clk 0:02:20]}  Nge7 {[%clk 0:02:42]} 12. Nbd2 {[%clk 0:02:19]}  Nc8 {[%clk 0:02:41]} 13. Ne4 {[%clk 0:02:18]}  Be7 {[%clk 0:02:41]} 14. Ba4 {[%clk 0:02:10]}  O-O {[%clk 0:02:38]} 15. Bxc6 {[%clk 0:02:09]}  bxc6 {[%clk 0:02:39]} 16. Nfd2 {[%clk 0:02:05]}  a5 {[%clk 0:02:31]} 17. a4 {[%clk 0:01:53]}  Qb6 {[%clk 0:02:27]} 18. b3 {[%clk 0:01:45]}  Qc7 {[%clk 0:02:21]} 19. g4 {[%clk 0:01:42]}  Bh7 {[%clk 0:02:17]} 20. Bg3 {[%clk 0:01:42]}  Nb6 {[%clk 0:02:13]} 21. f4 {[%clk 0:01:41]}  Nd7 {[%clk 0:02:13]} 22. Nf3 {[%clk 0:01:38]}  Rab8 {[%clk 0:02:08]} 23. Rab1 {[%clk 0:01:37]}  Qa7 {[%clk 0:01:55]} 24. Kh1 {[%clk 0:01:32]}  Rfe8 {[%clk 0:01:50]} 25. Nfd2 {[%clk 0:01:32]}  Rbd8 {[%clk 0:01:37]} 26. Rg1 {[%clk 0:01:30]}  f5 {[%clk 0:01:33]} 27. Nf2 {[%clk 0:01:22]}  Nf8 {[%clk 0:01:22]} 28. Rg2 {[%clk 0:01:22]}  Kh8 {[%clk 0:01:00]} 29. Rbg1 {[%clk 0:01:20]}  Rd7 {[%clk 0:01:00]} 30. Bh2 {[%clk 0:01:08]}  Bd8 {[%clk 0:00:55]} 31. Nf3 {[%clk 0:01:00]}  Rf7 {[%clk 0:00:50]} 32. g5 {[%clk 0:00:59]}  hxg5 {[%clk 0:00:42]} 33. Nxg5 {[%clk 0:00:59]}  Bxg5 {[%clk 0:00:28]} 34. Rxg5 {[%clk 0:00:59]}  g6 {[%clk 0:00:25]} 35. h4 {[%clk 0:00:55]}  Rg7 {[%clk 0:00:25]} 36. h5 {[%clk 0:00:54]}  Ree7 {[%clk 0:00:24]} 37. Qf3 {[%clk 0:00:54]}  Qd7 {[%clk 0:00:23]} 38. Bg3 {[%clk 0:00:50]}  gxh5 {[%clk 0:00:23]} 39. Qxh5 {[%clk 0:00:48]}  Rxg5 {[%clk 0:00:23]} 40. Qxg5 {[%clk 0:00:46]}  Rg7 {[%clk 0:00:23]} 41. Qf6 {[%clk 0:00:45]}  Kg8 {[%clk 0:00:24]} 42. Bh4 {[%clk 0:00:40]}  Rxg1+ {[%clk 0:00:24]} 43. Kxg1 {[%clk 0:00:41]}  Bg6 {[%clk 0:00:20]} 44. Bg5 {[%clk 0:00:37]}  Qb7 {[%clk 0:00:19]} 45. Bh6 {[%clk 0:00:35]}  Qf7 {[%clk 0:00:19]} 46. Qd8 {[%clk 0:00:31]}  Qe8 {[%clk 0:00:16]} 47. Qxa5 {[%clk 0:00:29]}  Nd7 {[%clk 0:00:16]} 48. Qc7 {[%clk 0:00:28]}  Bh5 {[%clk 0:00:15]} 49. Bg5 {[%clk 0:00:25]}  Nf8 {[%clk 0:00:12]} 50. a5 {[%clk 0:00:22]}  Qa8 {[%clk 0:00:11]} 51. Qb6 {[%clk 0:00:22]}  Nd7 {[%clk 0:00:07]} 52. Qc7 {[%clk 0:00:19]}  Be8 {[%clk 0:00:08]} 53. Kg2 {[%clk 0:00:17]}  Qb8 {[%clk 0:00:06]} 54. Qxb8 {[%clk 0:00:14]}  Nxb8 {[%clk 0:00:06]} 55. Be7 {[%clk 0:00:14]}  Na6 {[%clk 0:00:07]} 56. Nh3 {[%clk 0:00:13]}  Kf7 {[%clk 0:00:06]} 57. Bd6 {[%clk 0:00:11]}  Bd7 {[%clk 0:00:06]} 58. Ng5+ {[%clk 0:00:12]}  Kg6 {[%clk 0:00:07]} 59. Kg3 {[%clk 0:00:12]}  Kg7 {[%clk 0:00:07]} 60. Kh4 {[%clk 0:00:12]}  Kg6 {[%clk 0:00:08]} 61. Kg3 {[%clk 0:00:11]}  Bc8 {[%clk 0:00:08]} 62. Nf3 {[%clk 0:00:12]}  Bd7 {[%clk 0:00:08]} 63. Nd2 {[%clk 0:00:12]}  Bc8 {[%clk 0:00:04]} 64. Kh4 {[%clk 0:00:12]}  Kh6 {[%clk 0:00:04]} 65. Nb1 {[%clk 0:00:12]}  Bd7 {[%clk 0:00:04]} 66. Na3 {[%clk 0:00:12]}  Be8 {[%clk 0:00:05]} 67. Nc2 {[%clk 0:00:12]}  Kg6 {[%clk 0:00:04]} 68. b4 {[%clk 0:00:12]}  cxb4 {[%clk 0:00:04]} 69. Nxb4 {[%clk 0:00:12]}  Nxb4 {[%clk 0:00:04]} 70. Bxb4 {[%clk 0:00:13]}  Bd7 {[%clk 0:00:03]} 71. a6 {[%clk 0:00:12]}  Bc8 {[%clk 0:00:04]} 72. a7 {[%clk 0:00:12]}  Bb7 {[%clk 0:00:04]} 73. Bc5 {[%clk 0:00:13]}  Ba8 {[%clk 0:00:05]} 74. Bxd4 {[%clk 0:00:13]}  Bb7 {[%clk 0:00:06]} 75. Bc5 {[%clk 0:00:13]}  Ba8 {[%clk 0:00:06]} 76. Bb6 {[%clk 0:00:13]}  Bb7 {[%clk 0:00:07]} 77. Kg3 {[%clk 0:00:12]}  Ba8 {[%clk 0:00:07]} 78. Kf3 {[%clk 0:00:13]}  Kf7 {[%clk 0:00:07]} 79. Ke3 {[%clk 0:00:13]}  Ke8 {[%clk 0:00:08]} 80. Kd4 {[%clk 0:00:14]}  Kd7 {[%clk 0:00:08]} 81. Kc5 {[%clk 0:00:14]}  Bb7 {[%clk 0:00:09]} 82. Ba5 {[%clk 0:00:15]}  Ba8 {[%clk 0:00:09]} 83. Kb6 {[%clk 0:00:15]}  Kc8 {[%clk 0:00:10]} 84. Bb4 {[%clk 0:00:15]}  Kd7 {[%clk 0:00:10]} 85. Bd6 {[%clk 0:00:15]}  Kc8 {[%clk 0:00:11]} 86. d4 {[%clk 0:00:16]}  Kd7 {[%clk 0:00:11]} 87. Bb8 {[%clk 0:00:16]}  Kc8 {[%clk 0:00:11]} 88. Kc5 {[%clk 0:00:16]}  Kd7 {[%clk 0:00:12]} 89. Bd6 {[%clk 0:00:16]}  Bb7 {[%clk 0:00:12]} 90. Bf8 {[%clk 0:00:16]}  Ba8 {[%clk 0:00:12]} 91. Kb6 {[%clk 0:00:16]}  Kc8 {[%clk 0:00:13]} 92. Bg7 {[%clk 0:00:15]}  Kd7 {[%clk 0:00:13]} 93. Ka6 {[%clk 0:00:14]}  Kc7 {[%clk 0:00:13]} 94. Bf8 {[%clk 0:00:13]}  Kc8 {[%clk 0:00:13]} 95. Bd6 {[%clk 0:00:14]}  Kd8 {[%clk 0:00:12]} 96. Ka5 {[%clk 0:00:14]}  Kc8 {[%clk 0:00:13]} 97. Kb4 {[%clk 0:00:14]}  Kb7 {[%clk 0:00:11]} 98. Kc5 {[%clk 0:00:14]}  Kc8 {[%clk 0:00:12]} 99. d5 {[%clk 0:00:14]}  cxd5 {[%clk 0:00:12]} 100. cxd5 {[%clk 0:00:14]}  Bxd5 {[%clk 0:00:12]} 101. Be7 {[%clk 0:00:13]}  Kd7 {[%clk 0:00:13]} 102. Bf6 {[%clk 0:00:12]}  Ba8 {[%clk 0:00:13]} 103. Kb6 {[%clk 0:00:12]}  Be4 {[%clk 0:00:13]} 104. Bh4 {[%clk 0:00:13]}  Bd5 {[%clk 0:00:14]} 105. Be1 {[%clk 0:00:14]}  Ba8 {[%clk 0:00:14]} 106. Bb4 {[%clk 0:00:14]}  Bd5 {[%clk 0:00:14]} 107. Bd6 {[%clk 0:00:15]}  Ba8 {[%clk 0:00:15]} 108. Bb8 {[%clk 0:00:16]}  Bd5 {[%clk 0:00:15]} 109. Kc5 {[%clk 0:00:17]}  Ba8 {[%clk 0:00:16]} 110. Kb6 {[%clk 0:00:18]}  Bd5 {[%clk 0:00:16]} 111. Kc5 {[%clk 0:00:19]}  Ba8 {[%clk 0:00:16]} 112. Kb6 {[%clk 0:00:20]} 1/2-1/2


[Site "https://www.chess.com"]

[Event "Titled Tuesday Blitz April 12 Late 2022"]
[White "Janturin, Artur"]
[Black "Khabinets, Ivan"]
[WhiteFideId "4130022"]
[BlackFideId "14115980"]
[WhiteElo "2363"]
[BlackElo "2114"]
[Result "1/2-1/2"]
[Round "05"]
[TimeControl "180+1"]
[Date "2022.04.13"]
[WhiteClock "0:00:22"]
[BlackClock "0:00:13"]

1. b3 {[%clk 0:02:55]}  e5 {[%clk 0:02:59]} 2. Bb2 {[%clk 0:02:56]}  Nc6 {[%clk 0:03:00]} 3. e3 {[%clk 0:02:56]}  Nf6 {[%clk 0:03:01]} 4. Nf3 {[%clk 0:02:56]}  Bd6 {[%clk 0:03:01]} 5. d4 {[%clk 0:02:55]}  exd4 {[%clk 0:02:58]} 6. Nxd4 {[%clk 0:02:56]}  O-O {[%clk 0:02:58]} 7. Be2 {[%clk 0:02:56]}  Re8 {[%clk 0:02:56]} 8. O-O {[%clk 0:02:56]}  Be5 {[%clk 0:02:55]} 9. Nxc6 {[%clk 0:02:54]}  bxc6 {[%clk 0:02:55]} 10. Bxe5 {[%clk 0:02:53]}  Rxe5 {[%clk 0:02:56]} 11. Qd4 {[%clk 0:02:43]}  Qe7 {[%clk 0:02:52]} 12. Bf3 {[%clk 0:02:41]}  c5 {[%clk 0:02:47]} 13. Qa4 {[%clk 0:02:38]}  d5 {[%clk 0:02:40]} 14. c4 {[%clk 0:02:31]}  Bd7 {[%clk 0:02:37]} 15. Qa5 {[%clk 0:02:31]}  Bg4 {[%clk 0:02:26]} 16. Bxd5 {[%clk 0:02:20]}  Nxd5 {[%clk 0:02:21]} 17. cxd5 {[%clk 0:02:21]}  Rxd5 {[%clk 0:02:17]} 18. Nc3 {[%clk 0:02:13]}  Rg5 {[%clk 0:02:17]} 19. Kh1 {[%clk 0:01:44]}  c4 {[%clk 0:02:11]} 20. Qa6 {[%clk 0:01:11]}  cxb3 {[%clk 0:01:51]} 21. axb3 {[%clk 0:01:12]}  Qe5 {[%clk 0:01:50]} 22. f4 {[%clk 0:01:11]}  Qxc3 {[%clk 0:01:40]} 23. fxg5 {[%clk 0:01:11]}  Qxe3 {[%clk 0:01:33]} 24. Qb7 {[%clk 0:00:47]}  Re8 {[%clk 0:01:32]} 25. Qxa7 {[%clk 0:00:45]}  Qxb3 {[%clk 0:01:27]} 26. Qxc7 {[%clk 0:00:44]}  g6 {[%clk 0:01:18]} 27. Qf4 {[%clk 0:00:43]}  Be6 {[%clk 0:01:17]} 28. Rab1 {[%clk 0:00:42]}  Qc2 {[%clk 0:01:17]} 29. Rbc1 {[%clk 0:00:42]}  Qb2 {[%clk 0:01:16]} 30. Rcd1 {[%clk 0:00:41]}  Rc8 {[%clk 0:01:13]} 31. Rd2 {[%clk 0:00:41]}  Qb5 {[%clk 0:01:12]} 32. Rdf2 {[%clk 0:00:40]}  Rc5 {[%clk 0:01:09]} 33. Qf6 {[%clk 0:00:25]}  Rxg5 {[%clk 0:00:50]} 34. Rb2 {[%clk 0:00:22]}  Qe5 {[%clk 0:00:34]} 35. Rb8+ {[%clk 0:00:09]}  Qxb8 {[%clk 0:00:34]} 36. Qxg5 {[%clk 0:00:10]}  Qb2 {[%clk 0:00:29]} 37. Qf4 {[%clk 0:00:10]}  Kg7 {[%clk 0:00:28]} 38. Qf2 {[%clk 0:00:11]}  Qe5 {[%clk 0:00:27]} 39. Qf4 {[%clk 0:00:11]}  Qc3 {[%clk 0:00:25]} 40. Qf3 {[%clk 0:00:11]}  Qb2 {[%clk 0:00:24]} 41. Qf2 {[%clk 0:00:11]}  Qc3 {[%clk 0:00:21]} 42. Qf3 {[%clk 0:00:12]}  Qd4 {[%clk 0:00:19]} 43. Qf2 {[%clk 0:00:12]}  Qe5 {[%clk 0:00:16]} 44. Qf4 {[%clk 0:00:12]}  Qb2 {[%clk 0:00:08]} 45. h3 {[%clk 0:00:12]}  h5 {[%clk 0:00:08]} 46. Qf2 {[%clk 0:00:13]}  Qe5 {[%clk 0:00:08]} 47. Qf4 {[%clk 0:00:13]}  Qc3 {[%clk 0:00:08]} 48. Kh2 {[%clk 0:00:12]}  Bd5 {[%clk 0:00:07]} 49. Rf2 {[%clk 0:00:13]}  Be6 {[%clk 0:00:06]} 50. Qf3 {[%clk 0:00:13]}  Qe5+ {[%clk 0:00:06]} 51. Qf4 {[%clk 0:00:13]}  Qxf4+ {[%clk 0:00:07]} 52. Rxf4 {[%clk 0:00:13]}  g5 {[%clk 0:00:07]} 53. Rb4 {[%clk 0:00:14]}  Kg6 {[%clk 0:00:08]} 54. Kg3 {[%clk 0:00:14]}  Kf6 {[%clk 0:00:08]} 55. h4 {[%clk 0:00:14]}  Kg6 {[%clk 0:00:09]} 56. Rb5 {[%clk 0:00:14]}  f6 {[%clk 0:00:07]} 57. Rb6 {[%clk 0:00:14]}  Bf5 {[%clk 0:00:07]} 58. Rd6 {[%clk 0:00:14]}  Be4 {[%clk 0:00:07]} 59. hxg5 {[%clk 0:00:14]}  Kxg5 {[%clk 0:00:07]} 60. Kf2 {[%clk 0:00:15]}  Bg6 {[%clk 0:00:07]} 61. Rb6 {[%clk 0:00:15]}  Bf5 {[%clk 0:00:08]} 62. Rb5 {[%clk 0:00:15]}  Kg6 {[%clk 0:00:07]} 63. Rc5 {[%clk 0:00:16]}  Kg5 {[%clk 0:00:08]} 64. g3 {[%clk 0:00:17]}  Kg4 {[%clk 0:00:09]} 65. Kg2 {[%clk 0:00:17]}  Kg5 {[%clk 0:00:09]} 66. Kh2 {[%clk 0:00:17]}  Kg4 {[%clk 0:00:09]} 67. Ra5 {[%clk 0:00:18]}  Kg5 {[%clk 0:00:10]} 68. Ra4 {[%clk 0:00:18]}  Bg4 {[%clk 0:00:10]} 69. Ra5+ {[%clk 0:00:19]}  Bf5 {[%clk 0:00:11]} 70. Kg2 {[%clk 0:00:20]}  Kg4 {[%clk 0:00:10]} 71. Ra8 {[%clk 0:00:20]}  Kg5 {[%clk 0:00:10]} 72. Rg8+ {[%clk 0:00:20]}  Bg6 {[%clk 0:00:10]} 73. Rg7 {[%clk 0:00:20]}  Kf5 {[%clk 0:00:10]} 74. Re7 {[%clk 0:00:20]}  Kg5 {[%clk 0:00:11]} 75. Kh3 {[%clk 0:00:20]}  Bf5+ {[%clk 0:00:11]} 76. Kh2 {[%clk 0:00:21]}  Bg6 {[%clk 0:00:12]} 77. Rc7 {[%clk 0:00:21]}  Bf5 {[%clk 0:00:13]} 78. Rc5 {[%clk 0:00:22]}  Kg4 {[%clk 0:00:13]} 79. Ra5 {[%clk 0:00:22]}  Kg5 {[%clk 0:00:13]} 1/2-1/2


[Site "https://www.chess.com"]

[Event "Titled Tuesday Blitz April 12 Late 2022"]
[White "Karttunen, Mika"]
[Black "Bachmann, Axel"]
[WhiteFideId "502081"]
[BlackFideId "3700488"]
[WhiteElo "2343"]
[BlackElo "2587"]
[Result "0-1"]
[Round "05"]
[TimeControl "180+1"]
[Date "2022.04.13"]
[WhiteClock "0:00:09"]
[BlackClock "0:00:08"]

1. e4 {[%clk 0:03:00]}  c5 {[%clk 0:02:59]} 2. Nf3 {[%clk 0:03:00]}  d6 {[%clk 0:02:59]} 3. d4 {[%clk 0:03:00]}  cxd4 {[%clk 0:02:59]} 4. Nxd4 {[%clk 0:03:00]}  Nf6 {[%clk 0:03:00]} 5. Nc3 {[%clk 0:03:00]}  a6 {[%clk 0:03:00]} 6. Be3 {[%clk 0:02:57]}  e5 {[%clk 0:02:58]} 7. Nb3 {[%clk 0:02:57]}  Be7 {[%clk 0:02:58]} 8. f3 {[%clk 0:02:56]}  Be6 {[%clk 0:02:52]} 9. Qd2 {[%clk 0:02:54]}  h5 {[%clk 0:02:52]} 10. O-O-O {[%clk 0:02:51]}  Nbd7 {[%clk 0:02:45]} 11. Nd5 {[%clk 0:02:35]}  Nxd5 {[%clk 0:02:42]} 12. exd5 {[%clk 0:02:35]}  Bf5 {[%clk 0:02:42]} 13. Bd3 {[%clk 0:02:29]}  Bxd3 {[%clk 0:02:42]} 14. Qxd3 {[%clk 0:02:30]}  Bg5 {[%clk 0:02:38]} 15. Kb1 {[%clk 0:02:27]}  O-O {[%clk 0:02:26]} 16. Bf2 {[%clk 0:01:37]}  Rc8 {[%clk 0:02:24]} 17. h4 {[%clk 0:01:36]}  Bh6 {[%clk 0:02:24]} 18. g4 {[%clk 0:01:31]}  Bf4 {[%clk 0:02:23]} 19. Be3 {[%clk 0:00:58]}  Bxe3 {[%clk 0:01:46]} 20. Qxe3 {[%clk 0:00:59]}  a5 {[%clk 0:01:37]} 21. Nd2 {[%clk 0:00:58]}  Qc7 {[%clk 0:01:25]} 22. Rc1 {[%clk 0:00:49]}  Qc5 {[%clk 0:01:09]} 23. Qd3 {[%clk 0:00:49]}  hxg4 {[%clk 0:01:00]} 24. Ne4 {[%clk 0:00:37]}  Qb6 {[%clk 0:00:49]} 25. Rhg1 {[%clk 0:00:31]}  f5 {[%clk 0:00:44]} 26. Ng5 {[%clk 0:00:28]}  Nc5 {[%clk 0:00:44]} 27. Qe3 {[%clk 0:00:11]}  f4 {[%clk 0:00:37]} 28. Qa3 {[%clk 0:00:09]}  g3 {[%clk 0:00:36]} 29. h5 {[%clk 0:00:09]}  Qb4 {[%clk 0:00:34]} 30. Qxb4 {[%clk 0:00:07]}  axb4 {[%clk 0:00:35]} 31. Rcd1 {[%clk 0:00:07]}  Ra8 {[%clk 0:00:34]} 32. Rg2 {[%clk 0:00:08]}  Ra7 {[%clk 0:00:34]} 33. c3 {[%clk 0:00:07]}  b3 {[%clk 0:00:31]} 34. axb3 {[%clk 0:00:07]}  Nxb3 {[%clk 0:00:30]} 35. Kc2 {[%clk 0:00:07]}  Nc5 {[%clk 0:00:31]} 36. Re2 {[%clk 0:00:06]}  Ra2 {[%clk 0:00:30]} 37. Ne6 {[%clk 0:00:07]}  Rc8 {[%clk 0:00:28]} 38. Nxc5 {[%clk 0:00:06]}  Rxc5 {[%clk 0:00:29]} 39. Kb3 {[%clk 0:00:06]}  Ra6 {[%clk 0:00:28]} 40. c4 {[%clk 0:00:06]}  b5 {[%clk 0:00:26]} 41. cxb5 {[%clk 0:00:06]}  Rxb5+ {[%clk 0:00:26]} 42. Kc4 {[%clk 0:00:07]}  Rc5+ {[%clk 0:00:25]} 43. Kb3 {[%clk 0:00:07]}  Rb6+ {[%clk 0:00:25]} 44. Ka2 {[%clk 0:00:07]}  Ra6+ {[%clk 0:00:23]} 45. Kb1 {[%clk 0:00:07]}  Raa5 {[%clk 0:00:22]} 46. Rd3 {[%clk 0:00:08]}  Rxd5 {[%clk 0:00:21]} 47. Rb3 {[%clk 0:00:08]}  Rab5 {[%clk 0:00:21]} 48. Ra3 {[%clk 0:00:09]}  Ra5 {[%clk 0:00:21]} 49. Rb3 {[%clk 0:00:09]}  Rdb5 {[%clk 0:00:21]} 50. Rc3 {[%clk 0:00:10]}  Rb6 {[%clk 0:00:20]} 51. Rc8+ {[%clk 0:00:10]}  Kh7 {[%clk 0:00:19]} 52. Rc7 {[%clk 0:00:11]}  Rab5 {[%clk 0:00:19]} 53. Rec2 {[%clk 0:00:11]}  d5 {[%clk 0:00:15]} 54. Re7 {[%clk 0:00:11]}  d4 {[%clk 0:00:15]} 55. Rcc7 {[%clk 0:00:10]}  Rxb2+ {[%clk 0:00:13]} 56. Kc1 {[%clk 0:00:11]}  Rb1+ {[%clk 0:00:13]} 57. Kc2 {[%clk 0:00:11]}  R6b2+ {[%clk 0:00:13]} 58. Kd3 {[%clk 0:00:12]}  Kh6 {[%clk 0:00:06]} 59. Ke4 {[%clk 0:00:11]}  Kxh5 {[%clk 0:00:02]} 60. Rxg7 {[%clk 0:00:11]}  Rb6 {[%clk 0:00:01]} 61. Rg8 {[%clk 0:00:08]}  Rh6 {[%clk 0:00:02]} 62. Rcg7 {[%clk 0:00:08]}  Rbb6 {[%clk 0:00:02]} 63. Rg4 {[%clk 0:00:07]}  Rhg6 {[%clk 0:00:01]} 64. Rh8+ {[%clk 0:00:07]}  Rh6 {[%clk 0:00:01]} 65. Rhg8 {[%clk 0:00:07]}  Rbg6 {[%clk 0:00:02]} 66. Kf5 {[%clk 0:00:07]}  Rxg4 {[%clk 0:00:03]} 67. fxg4+ {[%clk 0:00:08]}  Kh4 {[%clk 0:00:03]} 68. g5 {[%clk 0:00:08]}  Rh5 {[%clk 0:00:04]} 69. Kf6 {[%clk 0:00:08]}  g2 {[%clk 0:00:05]} 70. g6 {[%clk 0:00:08]}  g1=Q {[%clk 0:00:05]} 71. g7 {[%clk 0:00:08]}  Qg5+ {[%clk 0:00:06]} 72. Ke6 {[%clk 0:00:09]}  Rh6+ {[%clk 0:00:07]} 73. Kd5 {[%clk 0:00:09]}  Qe7 {[%clk 0:00:07]} 74. Rh8 {[%clk 0:00:09]}  Qxg7 {[%clk 0:00:07]} 75. Rd8 {[%clk 0:00:09]}  Kg4 {[%clk 0:00:08]} 76. Ke4 {[%clk 0:00:09]}  Rg6 {[%clk 0:00:08]} 0-1


[Site "https://www.chess.com"]

[Event "Titled Tuesday Blitz April 12 Late 2022"]
[White "Kosteniuk, Alexandra"]
[Black "Rasulov, Vugar"]
[WhiteFideId "4128125"]
[BlackFideId "13402390"]
[WhiteElo "2469"]
[BlackElo "2560"]
[Result "1-0"]
[Round "05"]
[TimeControl "180+1"]
[Date "2022.04.12"]
[WhiteClock "0:00:15"]
[BlackClock "0:00:07"]

1. e4 {[%clk 0:03:00]}  e5 {[%clk 0:02:59]} 2. Nf3 {[%clk 0:03:00]}  Nc6 {[%clk 0:02:59]} 3. Bc4 {[%clk 0:03:00]}  Nf6 {[%clk 0:02:58]} 4. d4 {[%clk 0:03:00]}  exd4 {[%clk 0:02:58]} 5. e5 {[%clk 0:03:00]}  d5 {[%clk 0:02:58]} 6. Bb5 {[%clk 0:02:59]}  Ne4 {[%clk 0:02:59]} 7. Nxd4 {[%clk 0:02:51]}  Bd7 {[%clk 0:02:59]} 8. Bxc6 {[%clk 0:02:50]}  bxc6 {[%clk 0:03:00]} 9. O-O {[%clk 0:02:50]}  Bc5 {[%clk 0:03:00]} 10. f3 {[%clk 0:02:48]}  Ng5 {[%clk 0:02:58]} 11. f4 {[%clk 0:02:48]}  Ne4 {[%clk 0:02:51]} 12. Be3 {[%clk 0:02:46]}  Bb6 {[%clk 0:02:44]} 13. Nd2 {[%clk 0:02:39]}  Nxd2 {[%clk 0:02:43]} 14. Qxd2 {[%clk 0:02:37]}  c5 {[%clk 0:02:44]} 15. Nf3 {[%clk 0:02:35]}  d4 {[%clk 0:02:44]} 16. Bf2 {[%clk 0:02:35]}  Bc6 {[%clk 0:02:38]} 17. Qe2 {[%clk 0:02:29]}  Qd5 {[%clk 0:02:32]} 18. Rfe1 {[%clk 0:02:22]}  O-O-O {[%clk 0:02:30]} 19. a4 {[%clk 0:02:17]}  a5 {[%clk 0:02:28]} 20. c4 {[%clk 0:01:48]}  dxc3 {[%clk 0:02:22]} 21. bxc3 {[%clk 0:01:48]}  Qd3 {[%clk 0:02:10]} 22. Ng5 {[%clk 0:01:32]}  Qxe2 {[%clk 0:01:55]} 23. Rxe2 {[%clk 0:01:32]}  Rd7 {[%clk 0:01:52]} 24. f5 {[%clk 0:01:25]}  Re8 {[%clk 0:01:50]} 25. Nxh7 {[%clk 0:01:09]}  Rd5 {[%clk 0:01:38]} 26. f6 {[%clk 0:00:49]}  Rg8 {[%clk 0:01:23]} 27. e6 {[%clk 0:00:47]}  Be8 {[%clk 0:01:03]} 28. exf7 {[%clk 0:00:43]}  Bxf7 {[%clk 0:01:04]} 29. Re7 {[%clk 0:00:43]}  Rd7 {[%clk 0:01:04]} 30. Rae1 {[%clk 0:00:37]}  Bg6 {[%clk 0:00:36]} 31. Rxd7 {[%clk 0:00:37]}  Kxd7 {[%clk 0:00:37]} 32. Re7+ {[%clk 0:00:38]}  Kc6 {[%clk 0:00:26]} 33. f7 {[%clk 0:00:36]}  Bxh7 {[%clk 0:00:26]} 34. fxg8=Q {[%clk 0:00:35]}  Bxg8 {[%clk 0:00:27]} 35. Rxg7 {[%clk 0:00:35]}  Bb3 {[%clk 0:00:27]} 36. Rg4 {[%clk 0:00:29]}  Bd1 {[%clk 0:00:27]} 37. Rf4 {[%clk 0:00:28]}  Kd5 {[%clk 0:00:25]} 38. h4 {[%clk 0:00:26]}  c6 {[%clk 0:00:25]} 39. h5 {[%clk 0:00:25]}  Bc7 {[%clk 0:00:17]} 40. Rh4 {[%clk 0:00:23]}  Bd8 {[%clk 0:00:15]} 41. c4+ {[%clk 0:00:21]}  Ke6 {[%clk 0:00:12]} 42. Rh3 {[%clk 0:00:20]}  Bxa4 {[%clk 0:00:11]} 43. h6 {[%clk 0:00:20]}  Bf6 {[%clk 0:00:11]} 44. h7 {[%clk 0:00:20]}  Bh8 {[%clk 0:00:12]} 45. Bxc5 {[%clk 0:00:20]}  Bc2 {[%clk 0:00:12]} 46. Rh6+ {[%clk 0:00:19]}  Kf5 {[%clk 0:00:12]} 47. Rxc6 {[%clk 0:00:18]}  Kg4 {[%clk 0:00:10]} 48. Rc8 {[%clk 0:00:17]}  Bxh7 {[%clk 0:00:08]} 49. Rxh8 {[%clk 0:00:16]}  Bd3 {[%clk 0:00:09]} 50. Rd8 {[%clk 0:00:15]}  Be2 {[%clk 0:00:07]} 51. Kf2 {[%clk 0:00:15]}  Bxc4 {[%clk 0:00:07]} 52. Rd4+ {[%clk 0:00:15]} 1-0


[Site "https://www.chess.com"]

[Event "Titled Tuesday Blitz April 12 Late 2022"]
[White "Koutlas, Nikolaos"]
[Black "Akrakan"]
[WhiteFideId "25827138"]
[WhiteElo "1645"]
[BlackElo "2170"]
[Result "1-0"]
[Round "05"]
[TimeControl "180+1"]
[Date "2022.04.13"]
[WhiteClock "0:00:36"]
[BlackClock "0:01:12"]

1. Nf3 {[%clk 0:02:59]}  c5 {[%clk 0:02:59]} 2. b3 {[%clk 0:02:58]}  Nc6 {[%clk 0:02:59]} 3. Bb2 {[%clk 0:02:58]}  Nf6 {[%clk 0:02:59]} 4. g3 {[%clk 0:02:56]}  e6 {[%clk 0:03:00]} 5. c4 {[%clk 0:02:54]}  Be7 {[%clk 0:03:00]} 6. Bg2 {[%clk 0:02:53]}  O-O {[%clk 0:03:00]} 7. O-O {[%clk 0:02:54]}  d5 {[%clk 0:03:00]} 8. cxd5 {[%clk 0:02:54]}  exd5 {[%clk 0:03:00]} 9. d4 {[%clk 0:02:55]}  cxd4 {[%clk 0:02:58]} 10. Nxd4 {[%clk 0:02:55]}  Be6 {[%clk 0:02:59]} 11. Nc3 {[%clk 0:02:54]}  Rc8 {[%clk 0:02:59]} 12. Rc1 {[%clk 0:02:53]}  Qd7 {[%clk 0:02:59]} 13. Nxe6 {[%clk 0:02:52]}  fxe6 {[%clk 0:02:58]} 14. Qd2 {[%clk 0:02:33]}  d4 {[%clk 0:02:44]} 15. Nb5 {[%clk 0:02:27]}  e5 {[%clk 0:02:43]} 16. Na3 {[%clk 0:02:14]}  Bb4 {[%clk 0:02:42]} 17. Qd3 {[%clk 0:02:08]}  Rcd8 {[%clk 0:02:27]} 18. Nc4 {[%clk 0:02:06]}  Qe6 {[%clk 0:02:17]} 19. Nd2 {[%clk 0:01:38]}  Bxd2 {[%clk 0:02:00]} 20. Qxd2 {[%clk 0:01:38]}  e4 {[%clk 0:02:00]} 21. Rfd1 {[%clk 0:01:32]}  d3 {[%clk 0:01:52]} 22. exd3 {[%clk 0:01:14]}  exd3 {[%clk 0:01:42]} 23. Re1 {[%clk 0:01:14]}  Qf5 {[%clk 0:01:37]} 24. h3 {[%clk 0:00:58]}  Nb4 {[%clk 0:01:30]} 25. Re5 {[%clk 0:00:41]}  Qd7 {[%clk 0:01:24]} 26. Qxb4 {[%clk 0:00:39]}  Nd5 {[%clk 0:01:12]} 27. Bxd5+ {[%clk 0:00:36]} 1-0


[Site "https://www.chess.com"]